{"text_format":"3","workbook":"xlsx","n_sheets":1,"sheets":["Unit_Price_Tab"],"not_rendered":{"external_links":1,"defined_names":7},"read":"whole","date_system":"1900"}

{"sheet":"Unit_Price_Tab","index":0,"n_rows":89,"n_cols":6,"rows_kept":89,"merged":[[0,0,0,5],[1,0,1,5],[81,0,81,5]]}
["24-DES-ITBPW-566- ATTACHMENT A - PRICING SHEET"]
["All Unit Prices on the Bid Form shall reflect and be inclusive of all costs."]
[]
["MASTER ITEM #","DESCRIPTION","QTY","UNIT","UNIT \nPRICE","TOTAL"]
["C1","GENERAL EARTH WORK"]
["MASTER ITEM #","DESCRIPTION","QTY","UNIT","UNIT \nPRICE","TOTAL"]
["02200-C1-00050","Select Borrow (VDOT Section 207 - Select Material, Type I)",50,"CY",null,{"$f":"$C$7*$E$7","v":{"v":0,"d":"$0.00"}}]
["02200-C1-00130","Aggregate, VDOT #21-A  (Compacted in Place per VDOT standards & Specs)",180,"CY",null,{"$f":"$C$8*$E$8","v":{"v":0,"d":"$0.00"}}]
["02200-C1-00160","Aggregate, VDOT #57  (Compacted in Place per VDOT standards & Specs)",27,"CY",null,{"$f":"C9*E9","v":{"v":0,"d":"$0.00"}}]
[{"$nulls":4},"SUBTOTAL",{"$f":"SUM(F7:F9)","v":{"v":0,"d":"$0.00"}}]
[]
["C2","CONCRETE WORK"]
["MASTER ITEM #","DESCRIPTION","QTY","UNIT","UNIT \nPRICE","TOTAL"]
["02750-C2-00020","Concrete Curb, Standard Header Curb C-3 (Arlington County Detail R-2.0), includes curb for aprons, ramps, etc.",50,"LF",null,{"$f":"E14*C14","v":{"v":0,"d":"$0.00"}}]
["02750-C2-00060","Concrete Curb & Gutter, Standard C-2 and C-2R (Arlington County Detail R-2.0), includes curb & gutter for aprons, ramps, etc.",720,"LF",null,{"$f":"E15*C15","v":{"v":0,"d":"$0.00"}}]
["02611-C2-00110","Concrete Sidewalk, 4\" Thickness (Arlington County Detail R-2.0)",476,"SY",null,{"$f":"E16*C16","v":{"v":0,"d":"$0.00"}}]
["02611-C2-00190","CG-12 Detectable Warning Surface - Truncated Domes",19,"SY",null,{"$f":"E17*C17","v":{"v":0,"d":"$0.00"}}]
["02611-C2-00170","Concrete Driveway Entrance, 6\" Thick Residential (Arlington County Details R-2.4A, R-2.4B, R-2.4C, R-2.4D)",120,"SY",null,{"$f":"E18*C18","v":{"v":0,"d":"$0.00"}}]
["03100-C2-00230","Concrete and Formwork (VDOT Class A3), only when not included in other pay items",3,"CY",null,{"$f":"E19*FC19","v":{"v":0,"d":"$0.00"}}]
[{"$nulls":4},"SUBTOTAL",{"$f":"SUM(F14:F19)","v":{"v":0,"d":"$0.00"}}]
[]
["C3","ASPHALT WORK"]
["MASTER ITEM #","DESCRIPTION","QTY","UNIT","UNIT \nPRICE","TOTAL"]
["02600-C3-00010","Asphalt Concrete, Planing or Milling (1/2\" to 3\" Depth)",1074,"SY",null,{"$f":"E24*C24","v":{"v":0,"d":"$0.00"}}]
["02600-C3-00030","Asphalt Concrete, Base Course (VDOT BM-25.0A)",186,"TON",null,{"$f":"E25*C25","v":{"v":0,"d":"$0.00"}}]
["02600-C3-00060","Asphalt Concrete, Surface Course (VDOT SM-9.5A)",250,"TON",null,{"$f":"E26*C26","v":{"v":0,"d":"$0.00"}}]
["02600-C3-SP121","Asphalt Header Curb, 4\" (VDOT SM-9.5A)",80,"LF"]
[{"$nulls":4},"SUBTOTAL",{"$f":"SUM(F24:F27)","v":{"v":0,"d":"$0.00"}}]
[]
["C4","STORM SEWER UTILITY WORK"]
["MASTER ITEM #","DESCRIPTION","QTY","UNIT","UNIT \nPRICE","TOTAL"]
["02500-C4-00620","15\" Pipe, RCP Class III, In Place Up to 6' Deep",18,"LF",null,{"$f":"E32*C32","v":{"v":0,"d":"$0.00"}}]
["02505-C4-00080","CB-2 (Arlington County Standards), In Place Up to 6' Deep",1,"EA",null,{"$f":"E33*C33","v":{"v":0,"d":"$0.00"}}]
["02505-C4-00100","CB-2A or CB-2B (throat lengths from 8'-6\" up to 16'-0\"),  In Place Up to 6' Deep, Arlington County Standards.",1,"EA",null,{"$f":"E34*C34","v":{"v":0,"d":"$0.00"}}]
["02505-C4-00470","Catch Basin Structure Top, Remove & Replace",1,"EA",null,{"v":0,"d":"$0.00"}]
["02505-C4-00520","Convert Catch Basin to Manhole",1,"EA",null,{"v":0,"d":"$0.00"}]
["02505-C4-00110","CB-2A or CB-2B (throat lengths from 8'-6\" up to 16'-0\"), Each VF Over 6' Deep, Arlington County Standards.",3,"VF",null,{"$f":"E37*C37","v":{"v":0,"d":"$0.00"}}]
["02505-C4-SP535","Convert catch Basin to Grate Inlet",1,"EA",null,{"$f":"E38*C38","v":{"v":0,"d":"$0.00"}}]
[{"$nulls":4},"SUBTOTAL",{"$f":"SUM(F32:F38)","v":{"v":0,"d":"$0.00"}}]
[]
["C9","STREET LIGHTING WORK"]
["MASTER ITEM #","DESCRIPTION","QTY","UNIT","UNIT \nPRICE","TOTAL"]
["14030-C9-00150","Remove Underground Conduit",140,"LF",null,{"$f":"E43*C43","v":{"v":0,"d":"$0.00"}}]
["14060-C9-00360","Removal of Existing Foundation - 4' to 8' Deep",1,"EA",null,{"$f":"E44*C44","v":{"v":0,"d":"$0.00"}}]
["14090-C9-SP450","Remove Streetlight Pole, Luminaire Arm and Light Fixture",1," EA",null,{"$f":"E45*C45","v":{"v":0,"d":"$0.00"}}]
[{"$nulls":4},"SUBTOTAL",{"$f":"SUM(F43:F45)","v":{"v":0,"d":"$0.00"}}]
[]
["C10","PAVEMENT MARKING AND SIGNAGE WORK"]
["MASTER ITEM #","DESCRIPTION","QTY","UNIT","UNIT \nPRICE","TOTAL"]
["02900-C10-00020","Six (6) Inch Transverse Markings",228,"LF",null,{"$f":"E50*C50","v":{"v":0,"d":"$0.00"}}]
["02900-C10-00040","Eighteen (18) Inch Transverse Markings",30,"LF",null,{"$f":"E51*C51","v":{"v":0,"d":"$0.00"}}]
["02900-C10-00050","Twenty Four (24) Inch Transverse Markings, Note: Used For Continental (Ladder) Crosswalk",270,"LF",null,{"$f":"E52*C52","v":{"v":0,"d":"$0.00"}}]
["02900-C10-00070","Four (4) Inch Longitudinal Solid Line",262,"LF",null,{"v":0,"d":"$0.00"}]
["02900-C10-00120","Six (6) Inch Longitudinal Solid Line",503,"LF",null,{"v":0,"d":"$0.00"}]
["02900-C10-00160","Six (6) Inch Longitudinal Skip Line (Two (2) Foot Line/ Four (4) Foot Spacing), Note: Twelve (12) LF Consists of Two (2) LF of Marking and Four (4) LF of Space",319,"LF",null,{"v":0,"d":"$0.00"}]
["02900-C10-00170","Twelve (12) Inch Yellow Longitudinal Centerline, Two - Four (4) Inch Yellow Lines with Four (4) Inch Separation",250,"LF",null,{"v":0,"d":"$0.00"}]
["02900-C10-00290","Standard Bicycle Symbols (MUTCD, Chapter 9C, Figure 9C-3), \"Bike Symbol\", \"Helmeted Bicyclist Symbol\"",2,"EA",null,{"v":0,"d":"$0.00"}]
["02900-C10-00360","Removal of Existing Longitudinal Lines (Up To and Including Six (6) Inch Width), Note: Base Unit For Removal",405,"LF",null,{"v":0,"d":"$0.00"}]
["02900-C10-00380","Removal of Existing Transverse Lines (Up To and Including Six (6) Inch Width), Note: Base Unit For Removal",75,"LF",null,{"v":0,"d":"$0.00"}]
["02900-C10-XXXXX","Removal of Existing Signs",5,"EA",null,{"v":0,"d":"$0.00"}]
["02619-C10-00410","Traffic Control Sign (Typical Stop, Yield, No Parking, Speed Limit, or Similar)",21,"EA",null,{"v":0,"d":"$0.00"}]
["02619-C10-00430","Traffic Control Sign (Typical Stop, Yield, No Parking, Speed Limit, or Similar), Relocate with New Post",10,"EA",null,{"v":0,"d":"$0.00"}]
["02900-C10-00225","Twelve (12) Inch Yellow Gore Markings, Twenty (20) Foot Spacing @ 45 Degree",28,"LF",null,{"v":0,"d":"$0.00"}]
["02619-C10-SP441","Removal of Existing Signs",5,"EA",null,{"v":0,"d":"$0.00"}]
["02840-C10-SP505","Relocate Existing Flexible Delineator Post",3,"EA",null,{"v":0,"d":"$0.00"}]
["02840-C10-SP510","Remove Existing Flexible Delineator Post",1,"EA",null,{"v":0,"d":"$0.00"}]
[{"$nulls":4},"SUBTOTAL",{"$f":"SUM(F50:F66)","v":{"v":0,"d":"$0.00"}}]
[]
["C11","LANDSCAPE AND HARDSCAPE RESTORATION WORK"]
["MASTER ITEM #","DESCRIPTION","QTY","UNIT","UNIT \nPRICE","TOTAL"]
["02100-C11-00500","Tree/Stump Removal - Class A. Remove and Dispose, Up to 6\" DBH to 12\" DBH (Diameter at Breast Height)",3,"EA"]
["02100-C11-00504","Tree/Stump Removal - Class E. Remove and Dispose, over 30\" DBH to 36\" DBH (Diameter at Breast Height)",2,"EA"]
["329300-C11-00601","Trees, Deciduous - 1.0 to 1.5\" caliper",3,"EA"]
["329300-C11-00603","Trees, Deciduous - 2.0 to 2.5\" caliper",6,"EA"]
["02800-C11-00081","Tree Staking (Arlington County Park and Recreation, 02930.6 and 02930.7)",9,"EA"]
["04300-C11-SP295","Remove Existing Wall Structure",1,"LS"]
[{"$nulls":4},"SUBTOTAL",{"$f":"SUM(F71:F76)","v":{"v":0,"d":"$0.00"}}]
[]
[]
[]
[{"$nulls":4}," CONTRACT TOTAL  PRICE (EXCLUDING PERCENTAGE ITEMS)",{"$f":"SUMIF(E:E,\"SUBTOTAL\",F:F)","v":{"v":0,"d":"$0.00"}}]
["Bidders must input their proposed percentages for SWPPP Administration, Maintenance of Traffic (MOT), Mobilization and De-Mobilization and Temporary Erosion and Sediment Controls. Evaluation of the contract total price will not include the  below items. "]
["PCT","PERCENTAGE LINE ITEMS"]
["MASTER ITEM #","DESCRIPTION","QTY","UNIT","UNIT \nPRICE","TOTAL"]
["01500-C13-10000","Temporary Erosion and Sediment Controls","NA","%"]
["01000-C16-00010","Maintenance of Traffic (MOT)","NA","%"]
["01000-C16-00030","Mobilization and De-Mobilization","NA","%"]
["01500-SA-00200","SWPPP Administration","NA","%"]
[{"$nulls":4},"PERCENTAGE LINE ITEMS SUBTOTAL",{"$f":"SUBTOTAL(109,Unit_Price_Tab!$F$85:$F$88)","v":{"v":0,"d":"$0.00"}}]